fUST/lending_fUST_20260402
["ID","MTS","AMOUNT","RATE_DAILY","PERIOD"]
[419296565,1775125276152,1270.501798,0.00036521,60]
[419296566,1775125276411,1270.501798,0.00036521,60]
[419296567,1775125277036,1270.501798,0.00036521,60]
[419296568,1775125277735,1270.501798,0.00036521,60]
[419296569,1775125278181,1270.501798,0.00036521,60]
[419296570,1775125278870,1270.501798,0.00036521,60]
[419296571,1775125317337,2000.0,0.00036521,30]
[419296572,1775125392306,847.00119867,0.00036521,60]
[419296573,1775125392651,847.00119867,0.00036521,60]
[419296574,1775125393218,847.00119867,0.00036521,60]
[419296575,1775125393581,847.00119867,0.00036521,60]
[419296576,1775125393860,847.00119867,0.00036521,60]
[419296577,1775125394138,847.00119867,0.00036521,60]
[419296578,1775125394415,847.00119867,0.00036521,60]
[419296579,1775125394672,847.00119867,0.00036521,60]
[419296580,1775125394993,847.00119867,0.00036521,60]
[419296581,1775125395360,847.00119866,0.00036521,60]
[419296582,1775125395686,847.00119866,0.00036521,60]
[419296583,1775125395968,847.00119866,0.00036521,60]
[419296584,1775125396344,847.00119866,0.00036521,60]
[419296585,1775125396637,847.00119866,0.00036521,60]
[419296586,1775125485598,564.66746578,0.00036521,60]
[419296587,1775125485997,564.66746578,0.00036521,60]
[419296588,1775125486445,564.66746578,0.00036521,60]
[419296589,1775125486727,564.66746578,0.00036521,60]
[419296590,1775125487001,564.66746578,0.00036521,60]
[419296591,1775125487262,564.66746578,0.00036521,60]
[419296592,1775125487763,564.66746578,0.00036521,60]
[419296593,1775125488023,564.66746578,0.00036521,60]
[419296594,1775125488290,564.66746578,0.00036521,60]
[419296595,1775125488786,564.66746578,0.00036521,60]
[419296596,1775125489058,564.66746578,0.00036521,60]
[419296597,1775125489324,564.66746577,0.00036521,60]
[419296598,1775125489719,564.66746577,0.00036521,60]
[419296599,1775125490062,564.66746577,0.00036521,60]
[419296603,1775125604946,527.02296806,0.00036521,60]
[419296604,1775125605471,527.02296806,0.00036521,60]
[419296605,1775125607716,527.02296806,0.00036521,60]
[419296606,1775125609256,527.02296806,0.00036521,60]
[419296607,1775125610469,527.02296806,0.00036521,60]
[419296608,1775125611044,527.02296806,0.00036521,60]
[419296609,1775125611625,527.02296806,0.00036521,60]
[419296610,1775125612268,527.02296806,0.00036521,60]
[419296611,1775125613461,527.02296806,0.00036521,60]
[419296612,1775125614625,527.02296805,0.00036521,60]
[419296614,1775125730614,501.92663625,0.00036521,60]
[419296615,1775125731145,501.92663625,0.00036521,60]
[419296616,1775125732331,501.92663625,0.00036521,60]
[419296617,1775125733879,501.92663625,0.00036521,60]
[419296618,1775125734172,501.92663625,0.00036521,60]
[419296619,1775125734751,501.92663624,0.00036521,60]
[419296620,1775125735611,501.92663624,0.00036521,60]
[419296621,1775125819517,585.58107562,0.00036521,60]
[419296622,1775125819777,585.58107562,0.00036521,60]
[419296623,1775125820047,585.58107562,0.00036521,60]
[419296624,1775125820431,585.58107562,0.00036521,60]
[419296996,1775125843885,-451.52396665,0.00013325,2]
[419296998,1775125843897,-609.0,0.00013325,2]
[419297000,1775125843907,-1000.0,0.00013699,2]
[419297002,1775125843917,-1803.30116815,0.00015487,2]
[419297005,1775125843928,-179.723877,0.00016078,2]
[419297007,1775125843941,-164.978727,0.00016717,2]
[419297009,1775125843953,-455.1794191,0.00017615,2]
[419297012,1775125843964,-300.0,0.00017657,2]
[419297014,1775125843974,-300.0,0.00017657,2]
[419297016,1775125843986,-248.55817433,0.00017658,2]
[419297020,1775125844011,-284.06648495,0.00017658,2]
[419297023,1775125844028,-443.41002886,0.00017658,2]
[419297025,1775125844043,-210.83408905,0.00017658,2]
[419297028,1775125844057,-240.95324463,0.00017658,2]
[419297030,1775125844070,-376.1129553,0.00017658,2]
[419297032,1775125844082,-250.0,0.00019014,4]
[419297036,1775125844102,-190.0,0.000192,2]
[419297038,1775125844116,-2309.67069851,0.00019542,2]
[419297040,1775125844129,-218.20157597,0.00019566,2]
[419297043,1775125844143,-392.76283675,0.00019566,2]
[419297045,1775125844156,-246.43686205,0.00019566,2]
[419297047,1775125844169,-85.96989621,0.00019566,2]
[419297299,1775125846582,-195.67223185,0.00019566,2]
[419297301,1775125846594,-313.09672673,0.00019566,2]
[419297303,1775125846606,-563.57410811,0.00019566,2]
[419297305,1775125846618,-439.62575927,0.00019566,2]
[419297308,1775125846629,-698.24504311,0.00019596,2]
[419297310,1775125846640,-181.72350112,0.00019596,2]
[419297312,1775125846651,-327.10230202,0.00019596,2]
[419297314,1775125846662,-1089.91687197,0.00019596,2]
[419297316,1775125846673,-334.87655126,0.00019614,2]
[419297319,1775125846684,-220.35896317,0.00019614,2]
[419297321,1775125846695,-41047.48302957,0.00019615,2]
[419297334,1775125846809,-1544.58914564,0.00019615,2]
[419297337,1775125846822,-14482.66965308,0.00019615,2]
[419297835,1775125866218,1226.0,0.00036521,30]
[419297846,1775125895864,520.51651167,0.00036521,60]
[419297847,1775125896154,520.51651166,0.00036521,60]
[419297848,1775125896462,520.51651166,0.00036521,60]
[419297849,1775125969185,520.51651167,0.00036521,60]
[419297850,1775125969478,520.51651166,0.00036521,60]
[419297851,1775125990093,18009.9,0.00036521,30]
[419297852,1775126054025,694.02201555,0.00036521,60]
[419297874,1775126160383,159.0907268,0.00036517,30]
[419297875,1775126166822,694.02201555,0.00036517,60]
[419297877,1775126254347,694.02201554,0.00036517,60]
[419297880,1775126493921,1000.0,0.00032877,120]
[419297881,1775126555165,178745.87370982,0.00036517,45]
[419297882,1775126563725,3036.31427577,0.00032777,120]
[419297883,1775126631885,152000.0,0.00032877,120]
[419298514,1775127043979,-603.08039854,0.00013699,2]
[419299683,1775127203837,322.0,0.00032876,120]
[419299684,1775127256104,523.98,0.000325,120]
[419299686,1775127295465,500.0,0.00032874,120]
[419299687,1775127297387,500.0,0.00032874,120]
[419299688,1775127299201,500.0,0.00032874,120]
[419299689,1775127300219,500.0,0.00032874,120]
[419299690,1775127301728,500.0,0.00032874,120]
[419299691,1775127303152,500.0,0.00032874,120]
[419299692,1775127304478,500.0,0.00032874,120]
[419299693,1775127305709,500.0,0.00032874,120]
[419299694,1775127306779,500.0,0.00032874,120]
[419299695,1775127307797,500.0,0.00032874,120]
[419299696,1775127309325,500.0,0.00032874,120]
[419299697,1775127310905,500.0,0.00032874,120]
[419299698,1775127312055,500.0,0.00032874,120]
[419299699,1775127313074,500.0,0.00032874,120]
[419299700,1775127314723,500.0,0.00032874,120]
[419299701,1775127315808,500.0,0.00032874,120]
[419299702,1775127316844,500.0,0.00032874,120]
[419299703,1775127317883,500.0,0.00032874,120]
[419299704,1775127318944,500.0,0.00032874,120]
[419299705,1775127320595,500.0,0.00032874,120]
[419299706,1775127321687,500.0,0.00032874,120]
[419299707,1775127681445,-283.93553794,0.00013699,2]
[419299745,1775128231678,-839.59173098,0.00012894,2]
[419299747,1775128231687,-605.0,0.00013024,2]
[419299749,1775128231696,-3210.85008197,0.00013025,2]
[419299795,1775128240467,-1789.14991803,0.00013025,2]
[419299796,1775128240477,-605.0,0.00013025,2]
[419299798,1775128240486,-1000.0,0.00013699,2]
[419299800,1775128240496,-300.0,0.00017657,2]
[419299802,1775128240505,-581.5152036,0.00017658,2]
[419299804,1775128240514,-907.70888811,0.00017658,2]
[419299806,1775128240523,-300.0,0.00018,2]
[419299808,1775128240533,-455.0241621,0.00018426,2]
[419299810,1775128240542,-196.2501007,0.00018432,2]
[419299811,1775128240552,-1001.90952553,0.00018588,2]
[419299812,1775128240562,-1563.91815001,0.00018588,2]
[419299813,1775128240571,-3122.73,0.00018893,2]
[419299814,1775128240580,-2751.73938248,0.00018915,2]
[419299815,1775128240590,-3692.60727303,0.00019015,2]
[419299821,1775128243084,-35466.66255996,0.00019015,2]
[419299822,1775128243095,-32998.49622411,0.00019015,2]
[419299827,1775128245972,-2070.21420704,0.00019015,2]
[419299829,1775128284574,1222.76,0.000328,120]
[419299830,1775128570812,151.0,5.48e-06,2]
[419299831,1775128572439,151.0,5.48e-06,2]
[419299832,1775128573337,151.0,5.48e-06,2]
[419299833,1775128574163,47.0,5.48e-06,2]
[419299834,1775128574192,104.0,5.48e-06,2]
[419299835,1775128575071,151.0,5.48e-06,2]
[419299836,1775128575923,151.0,5.48e-06,2]
[419299837,1775128576758,94.0,5.48e-06,2]
[419299838,1775128576784,57.0,5.48e-06,2]
[419299839,1775128577735,151.0,5.48e-06,2]
[419299840,1775128578564,151.0,5.48e-06,2]
[419299841,1775128579385,151.0,5.48e-06,2]
[419299842,1775128580861,151.0,5.48e-06,2]
[419299843,1775128582636,151.0,5.48e-06,2]
[419299844,1775128583538,151.0,5.48e-06,2]
[419299845,1775128584389,151.0,5.48e-06,2]
[419299846,1775128585572,151.0,5.48e-06,2]
[419299847,1775128586410,151.0,5.48e-06,2]
[419299848,1775128587992,151.0,5.48e-06,2]
[419299849,1775128588854,151.0,5.48e-06,2]
[419299850,1775128590201,151.0,5.48e-06,2]
[419299851,1775128591828,151.0,5.48e-06,2]
[419299852,1775128592805,151.0,5.48e-06,2]
[419299853,1775128593640,151.0,5.48e-06,2]
[419299854,1775128594519,151.0,5.48e-06,2]
[419299855,1775128595434,151.0,5.48e-06,2]
[419299856,1775128596306,151.0,5.48e-06,2]
[419299857,1775128597126,151.0,5.48e-06,2]
[419299858,1775128598017,220.03045013,5.48e-06,2]
[419299861,1775128625949,500.0,0.0003287,120]
[419299863,1775129026852,570.91765204,0.00032876,120]
[419299865,1775129202483,300.0,0.0003287,120]
[419299866,1775129218907,1252.62,0.00032034,120]
[419299867,1775129220795,1252.62,0.00032152,120]
[419299868,1775129221859,1252.62,0.00032269,120]
[419299869,1775129223176,1252.62,0.00032386,120]
[419299870,1775129232757,1252.62,0.00032503,120]
[419299871,1775129233981,1252.62,0.00032621,120]
[419299872,1775129235196,1252.62,0.00032738,120]
[419299873,1775129236581,1252.62,0.00032855,120]
[419299874,1775129332011,500.0,0.00032876,120]
[419299876,1775129401446,1000.0,0.000326,120]
[419299877,1775129402519,302.90311887,0.00032876,120]
[419299878,1775129403828,300.0,0.00032849,120]
[419299883,1775129426777,190.0,0.00032876,120]
[419299901,1775129431935,-300.0,0.00013698,2]
[419299902,1775129431945,-615.0,0.00013698,2]
[419299903,1775129431955,-1000.0,0.00013699,2]
[419299904,1775129431964,-6164.02977471,0.00013699,2]
[419299905,1775129431993,-608.24692022,0.00013699,2]
[419299989,1775129441000,-39.90230184,0.00013699,2]
[419299990,1775129441010,-324.958712,0.00017604,2]
[419299991,1775129441020,-1153.2859676,0.0001788,2]
[419299992,1775129441029,-309.23,0.00018536,2]
[419299993,1775129441038,-3761.14986415,0.00018815,2]
[419299994,1775129441110,-6617.0,0.00018815,2]
[419300017,1775129446343,-3269.6333598,0.00018815,2]
[419300018,1775129481852,-1000.0,0.00013699,2]
[419300019,1775129532423,1000.0,0.00032877,120]
[419300020,1775129541088,288.9988679,0.00032849,120]
[419300021,1775129541387,300.0,0.00032849,120]
[419300022,1775129542525,1000.0,0.00032877,120]
[419300023,1775129543668,300.0,0.00032849,120]
[419300024,1775129545928,253.78941424,0.00032849,120]
[419300025,1775129552572,1000.0,0.00032877,120]
[419300026,1775129562849,2207.95443051,0.00032877,120]
[419300027,1775129563796,1000.0,0.00032877,120]
[419300028,1775129573106,1000.0,0.00032877,120]
[419300029,1775129581648,1000.0,0.00032877,120]
[419300030,1775129629400,1000.0,0.00032,120]
[419300032,1775129659710,1000.0,0.00032877,120]
[419300033,1775129666404,2812.0,0.000328,120]
[419300034,1775129669027,1000.0,0.00032877,120]
[419300035,1775129685314,1000.0,0.00032876,120]
[419300036,1775129688162,1000.0,0.000328,120]
[419300037,1775129744302,500.0,0.00019861,120]
[419300038,1775129744536,253.26,0.00021099,120]
[419300039,1775129828596,300.59046155,0.0003287,120]
[419300040,1775129829088,4298.27,0.0003287,120]
[419300041,1775129956924,315.6,0.00032,120]
[419300043,1775130047405,3000.0,0.00032877,120]
[419300044,1775130083513,1020.65,0.00032062,120]
[419300045,1775130085786,1020.65,0.00032192,120]
[419300046,1775130086855,1020.65,0.00032323,120]
[419300047,1775130087925,1020.65,0.00032454,120]
[419300048,1775130088999,1020.65,0.00032585,120]
[419300049,1775130090551,1020.65,0.00032715,120]
[419300050,1775130091955,1020.65,0.00032846,120]
[419300051,1775130165725,765.1,0.00032877,120]
[419300052,1775130179879,500.0,0.00019861,120]
[419300053,1775130180137,500.0,0.00021099,120]
[419300054,1775130180395,500.0,0.00021799,120]
[419300055,1775130180618,500.0,0.00021917,120]
[419300056,1775130180863,500.0,0.00021917,120]
[419300057,1775130181064,500.0,0.00021917,120]
[419300058,1775130181297,500.0,0.00021917,120]
[419300059,1775130181554,290.29030057,0.00021917,120]
[419300060,1775130195548,722.65907755,0.00032877,120]
[419300061,1775130363607,305.6,0.00032877,120]
[419300065,1775130535131,183.3,0.00032877,120]
[419300066,1775130541998,570.91765204,0.00032877,120]
[419300081,1775130632015,-890.80523715,0.00013699,2]
[419300083,1775130632027,-109.19476285,0.00013699,2]
[419300085,1775130632036,-615.0,0.00013699,2]
[419300087,1775130632046,-247.384,0.0001834,2]
[419300088,1775130632056,-152.3290858,0.00018426,2]
[419300089,1775130632066,-1216.17663459,0.00018515,2]
[419300090,1775130632077,-7757.2334799,0.00018515,2]
[419300127,1775130638314,-234.41358588,0.00018514,2]
[419300129,1775130638323,-154.25127422,0.00018514,2]
[419300131,1775130638333,-954.0351399,0.00018515,2]
[419300134,1775130638344,-5724.11002545,0.00018515,2]
[419300136,1775130638356,-86412.92484976,0.00018515,2]
[419300157,1775130640870,-150.09,0.00018514,2]
[419300158,1775130640880,-6489.31,0.00018515,2]
[419300466,1775130649552,-5102.22001032,0.00018515,2]
[419300467,1775130649564,-14574.49136511,0.00018515,2]
[419300468,1775130681917,1000.0,0.00032,120]
[419300469,1775130712359,1000.0,0.00032,120]
[419300470,1775130725192,150.2,0.00032876,120]
[419300471,1775130769814,253.5615323,0.00032877,120]
[419300475,1775130844943,1674.0,0.00032876,120]
[419300476,1775130963303,1020.66,0.00032158,120]
[419300477,1775130964359,1020.66,0.00032337,120]
[419300478,1775130965366,1020.66,0.00032516,120]
[419300479,1775130966638,1020.66,0.00032695,120]
[419300480,1775130967631,1020.66,0.00032874,120]
[419300481,1775131011990,490.1,0.00032877,120]
[419300482,1775131029622,2000.0,0.00032876,120]
[419300483,1775131029870,2000.0,0.00032876,120]
[419300484,1775131030099,2000.0,0.00032876,120]
[419300485,1775131030343,2000.0,0.00032876,120]
[419300486,1775131030578,2000.0,0.00032876,120]
[419300487,1775131030814,2000.0,0.00032876,120]
[419300488,1775131031057,2000.0,0.00032876,120]
[419300489,1775131031308,2000.0,0.00032876,120]
[419300490,1775131031535,2000.0,0.00032876,120]
[419300491,1775131031774,2000.0,0.00032876,120]
[419300492,1775131032003,2000.0,0.00032876,120]
[419300493,1775131032230,2000.0,0.00032876,120]
[419300494,1775131032611,2000.0,0.00032876,120]
[419300495,1775131032713,2000.0,0.00032876,120]
[419300496,1775131032944,2000.0,0.00032876,120]
[419300497,1775131033177,2000.0,0.00032876,120]
[419300498,1775131033405,2000.0,0.00032876,120]
[419300499,1775131033642,2000.0,0.00032876,120]
[419300500,1775131033873,2000.0,0.00032876,120]
[419300501,1775131034218,2000.0,0.00032876,120]
[419300502,1775131034352,2000.0,0.00032876,120]
[419300503,1775131034586,2000.0,0.00032876,120]
[419300504,1775131034804,2000.0,0.00032876,120]
[419300505,1775131035023,2000.0,0.00032876,120]
[419300506,1775131035275,2000.0,0.00032876,120]
[419300507,1775131035510,2000.0,0.00032876,120]
[419300508,1775131035746,2000.0,0.00032876,120]
[419300509,1775131036019,2000.0,0.00032876,120]
[419300510,1775131036281,2000.0,0.00032876,120]
[419300511,1775131036504,2000.0,0.00032876,120]
[419300512,1775131036719,2000.0,0.00032876,120]
[419300513,1775131037065,2000.0,0.00032876,120]
[419300514,1775131037274,2000.0,0.00032876,120]
[419300515,1775131037385,2000.0,0.00032876,120]
[419300516,1775131037627,2000.0,0.00032876,120]
[419300517,1775131037860,2000.0,0.00032876,120]
[419300518,1775131038075,2000.0,0.00032876,120]
[419300519,1775131038309,2000.0,0.00032876,120]
[419300520,1775131038526,2000.0,0.00032876,120]
[419300521,1775131038762,2000.0,0.00032876,120]
[419300522,1775131038988,1207.65139396,0.00032876,120]
[419300524,1775131144797,378.77,0.00032877,120]
[419300527,1775131281070,-1000.0,0.00013699,2]
[419300529,1775131811807,180.16238536,0.0003,120]
[419300531,1775131815948,1030.5598989,0.00029,120]
[419300542,1775131833191,-166.0,9.8e-05,2]
[419300543,1775131833201,-1863.5,9.801e-05,2]
[419300544,1775131833243,-1074.97810217,9.801e-05,2]
[419300545,1775131833257,-458.67864467,9.801e-05,2]
[419300546,1775131833268,-1284.9289357,9.801e-05,2]
[419300553,1775131838628,-317.91431746,9.801e-05,2]
[419300554,1775131838638,-557.0,9.801e-05,2]
[419300555,1775131838646,-150.6,0.0001,2]
[419300556,1775131838655,-1000.0,0.00013699,2]
[419300557,1775131838665,-527.3283334,0.00017481,2]
[419300558,1775131838674,-233.39937811,0.00017595,2]
[419300559,1775131838683,-420.11888059,0.00017595,2]
[419300560,1775131838692,-746.87800994,0.00017595,2]
[419300561,1775131838701,-1165.82989365,0.00017595,2]
[419300562,1775131838710,-379.3065078,0.00017595,2]
[419300563,1775131838719,-433.49315177,0.00017595,2]
[419300564,1775131838728,-676.6557166,0.00017595,2]
[419300565,1775131838737,-166.66666668,0.0001818,2]
[419300566,1775131838746,-840.1281347,0.0001828,2]
[419300567,1775131838755,-3078.3257592,0.0001828,2]
[419300568,1775131838764,-166.66666666,0.00018301,2]
[419300569,1775131838773,-2398.4119403,0.0001838,2]
[419300570,1775131838782,-166.66666666,0.00018421,2]
[419300571,1775131838791,-196.2850388,0.00018428,2]
[419300572,1775131838800,-455.1356185,0.00018445,2]
[419300573,1775131838811,-324.6301057,0.00018445,2]
[419300574,1775131838820,-196.2501007,0.00018445,2]
[419300575,1775131838830,-151.0,0.00018446,2]
[419300576,1775131838839,-231.6590977,0.00018446,2]
[419300577,1775131838847,-188.87480202,0.00018521,2]
[419300578,1775131838857,-165.29987409,0.00018573,2]
[419300579,1775131838866,-552.89931984,0.00018573,2]
[419300580,1775131838874,-151.0,0.00018573,2]
[419300581,1775131838884,-8698.07495052,0.00018715,2]
[419300582,1775131838892,-164.08951012,0.00018814,2]
[419300583,1775131838902,-500.0,0.00018814,2]
[419300584,1775131838911,-500.0,0.00018814,2]
[419300585,1775131838921,-1700000.0,0.00018815,2]
[419300586,1775131838929,-23450.92311825,0.00018815,2]
[419300587,1775131838941,-1279.84607194,0.00018815,2]
[419300600,1775131841274,-9989.24980685,0.00018815,2]
[419300602,1775131841329,-119182.8,0.00018815,2]
[419300612,1775131843700,-261.0,0.00018815,2]
[419300615,1775131843859,-3325.63987826,0.00018815,2]
[419300616,1775131843913,-21026.9999993,0.00018815,2]
[419300651,1775131849848,-5000.0,0.00018627,14]
[419300652,1775131849859,-28250.00000001,0.00018815,2]
[419300653,1775131850113,-344.49500704,0.00018815,2]
[419300654,1775131850169,-1326.16,0.00018815,2]
[419300655,1775131850180,-2644.0,0.00018815,2]
[419300656,1775131855442,1020.66,0.00032043,120]
[419300657,1775131856434,1020.66,0.00032286,120]
[419300658,1775131857446,1020.66,0.00032529,120]
[419300659,1775131858469,1020.66,0.00032771,120]
[419300663,1775132346305,659.19,0.000328,120]
[419300665,1775132486493,10000.0,0.00032877,120]
[419300666,1775132492767,10000.0,0.00032877,120]
[419300667,1775132500474,5000.0,0.00032877,120]
[419300668,1775132512781,5000.0,0.00032877,120]
[419300669,1775132547027,1300.788,0.0003287,120]
[419300670,1775132587454,10000.0,0.00032877,120]
[419300671,1775132600039,1403.0,0.00032877,120]
[419300672,1775132604777,10000.0,0.00032877,120]
[419300673,1775132699517,10000.0,0.00032877,120]
[419300674,1775132711032,10000.0,0.00032877,120]
[419300675,1775132720820,10000.0,0.00032877,120]
[419300676,1775132727701,10000.0,0.00032877,120]
[419300677,1775132742340,10000.0,0.00032877,120]
[419300678,1775132751913,1020.66,0.0003214,120]
[419300679,1775132752895,1020.66,0.0003248,120]
[419300680,1775132754008,1020.66,0.0003282,120]
[419300681,1775132759817,8024.0,0.00032877,120]
[419300688,1775133032426,-1000.0,0.00013699,2]
[419300690,1775133032435,-395.43078165,0.00013699,2]
[419300780,1775133041776,-219.56921835,0.00013699,2]
[419300781,1775133041788,-287.02941202,0.000176,2]
[419300782,1775133041798,-162.48136963,0.00017919,2]
[419300788,1775133041992,-622.51863037,0.00017919,2]
[419300789,1775133042002,-160.0,0.00017919,2]
[419300790,1775133042012,-152.0,0.00017919,2]
[419300791,1775133042022,-158.0,0.00017919,2]
[419300792,1775133042032,-2751.73938248,0.00018415,2]
[419300793,1775133042042,-455.2232197,0.00018447,2]
[419300794,1775133042051,-300.0,0.00018514,2]
[419300795,1775133042062,-132538.43511166,0.00018515,2]
[419300803,1775133043879,-557.18407237,0.00018515,2]
[419300818,1775133046670,-4476.3278529,0.00018515,2]
[419300819,1775133046727,-264.7,0.00018515,2]
[419300820,1775133046920,-2239.43440119,0.00018515,2]
[419300821,1775133046945,-10326.66401471,0.00018515,2]
[419300822,1775133121919,10000.0,0.00032877,120]
[419300823,1775133135566,3718.03216276,0.00032876,120]
[419300824,1775133174805,310.0,0.00032876,120]
[419300825,1775133302305,203.499999,0.0003,120]
[419300847,1775133646473,10000.0,0.00032877,120]
[419300848,1775133648237,1020.66,0.00032286,120]
[419300849,1775133649248,1020.66,0.00032771,120]
[419300850,1775133660217,-151.0,0.00013426,14]
[419300851,1775133660944,-151.0,0.00013426,14]
[419300852,1775133661921,-151.0,0.00013426,14]
[419300853,1775133662450,10000.0,0.00032877,120]
[419300854,1775133662870,-151.0,0.00013426,14]
[419300855,1775133663909,-151.0,0.00013426,14]
[419300856,1775133673376,10000.0,0.00032877,120]
[419300857,1775133679022,10000.0,0.00032877,120]
[419300858,1775133684506,10000.0,0.00032877,120]
[419300859,1775133690607,10000.0,0.00032877,120]
[419300860,1775133695888,10000.0,0.00032877,120]
[419300861,1775133701609,10000.0,0.00032877,120]
[419300862,1775133798472,10000.0,0.00032877,120]
[419300863,1775133803777,10000.0,0.00032877,120]
[419300864,1775133808843,10000.0,0.00032877,120]
[419300865,1775133814021,10000.0,0.00032877,120]
[419300866,1775133820334,10000.0,0.00032877,120]
[419300867,1775133827963,10000.0,0.00032877,120]
[419300868,1775133834199,10000.0,0.00032877,120]
[419300869,1775133840223,10000.0,0.00032877,120]
[419300870,1775133846964,10000.0,0.00032877,120]
[419300872,1775134026954,1352.27,0.00032877,120]
[419300873,1775134077011,1000.0,0.0003287,120]
[419300874,1775134095836,1000.0,0.0003287,120]
[419300897,1775134232645,-1000.0,0.00013699,2]
[419300899,1775134232656,-615.0,0.00013699,2]
[419300901,1775134232666,-196.2850388,0.00017624,2]
[419300902,1775134232675,-300.0,0.00017691,2]
[419300904,1775134232684,-5782.55753292,0.00017692,2]
[419300907,1775134232696,-958.67494373,0.00017692,2]
[419300909,1775134232708,-1457.66658265,0.00017692,2]
[419300923,1775134238756,-780.0,0.00017692,2]
[419300924,1775134238768,-1515.10008273,0.00017692,2]
[419300935,1775134244175,-3335.00000001,0.00017692,2]
[419300936,1775134244187,-372.96809676,0.00017692,2]
[419300937,1775134244198,-455.2232198,0.0001844,2]
[419300938,1775134244207,-554.8971228,0.0001844,2]
[419300939,1775134244217,-29.37614912,0.0001844,2]
[419300953,1775134246917,-294.74324388,0.0001844,2]
[419300954,1775134246927,-196.2288399,0.00018445,2]
[419300955,1775134246936,-324.9282386,0.00018447,2]
[419300956,1775134246946,-826.38922633,0.00018715,2]
[419300957,1775134247128,-1413.04517487,0.00018715,2]
[419300958,1775134247138,-36.11658123,0.00018715,2]
[419300959,1775134500681,500.0,0.0003287,120]
[419300965,1775134695636,222.785,0.00032876,120]
[419300966,1775134726003,1000.0,0.00032876,120]
[419300968,1775134791818,500.0,0.00032876,120]
[419300969,1775134825358,151.0,0.00032877,120]
[419300970,1775134977331,159.0907268,0.00032877,120]
[419300971,1775135137243,833.41,0.00032877,120]
[419300972,1775135202451,273.55279227,0.00032876,120]
[419300975,1775135314093,10000.0,0.00032877,120]
[419300976,1775135331485,10000.0,0.00032877,120]
[419300977,1775135337083,1500.0,0.00032877,120]
[419300978,1775135347356,10000.0,0.00032877,120]
[419300980,1775135363738,919.69752028,0.00032877,120]
[419300991,1775135431942,-1000.0,0.00013699,2]
[419300994,1775135431952,-93.98275846,0.00013699,2]
[419300996,1775135431965,-521.01724154,0.00013699,2]
[419300998,1775135431974,-300.0,0.00015323,2]
[419301000,1775135431984,-339.97464363,0.00015324,2]
[419301002,1775135431994,-604.39936646,0.00015324,2]
[419301004,1775135432006,-943.42963608,0.00015324,2]
[419301006,1775135432015,-323.67447842,0.00015324,2]
[419301008,1775135432025,-369.91368962,0.00015324,2]
[419301010,1775135432034,-577.41214989,0.00015324,2]
[419301012,1775135432043,-250.89830999,0.0001711,2]
[419301014,1775135432054,-196.2713615,0.00017618,2]
[419301016,1775135432063,-5980.47046039,0.00017874,2]
[419301018,1775135432073,-5000.0,0.00017874,2]
[419301030,1775135432196,-5000.0,0.00017874,2]
[419301033,1775135432210,-5000.0,0.00017874,2]
[419301036,1775135432221,-5000.0,0.00017874,2]
[419301039,1775135432232,-2403.25738706,0.00018142,2]
[419301041,1775135432241,-420.317,0.00018242,2]
[419301043,1775135432250,-187.72026209,0.00018399,2]
[419301045,1775135432259,-243.50199438,0.00018415,2]